bitfinex/quotes_SOLUSD_20250821
["timestamp","ask_amount","ask_price","bid_price","bid_amount"]
[1755777212450,0.77,183.89,183.88,79.24]
[1755777212754,0.77,183.89,183.88,147.8]
[1755777213735,0.06,183.89,183.88,147.8]
[1755777215427,0.77,183.89,183.88,147.8]
[1755777215623,0.06,183.89,183.88,147.8]
[1755777219533,0.06,183.89,183.88,121.8]
[1755777220051,0.06,183.89,183.88,126.35801507]
[1755777221446,0.06,183.89,183.88,122.47]
[1755777221747,0.77,183.89,183.88,121.8]
[1755777221954,0.77,183.89,183.88,79.24]
[1755777222153,0.77,183.89,183.88,121.8]
[1755777222741,0.06,183.89,183.88,121.8]
[1755777222943,0.06,183.89,183.88,122.47]
[1755777223133,0.06,183.89,183.88,126.35801507]
[1755777225360,0.06,183.89,183.88,165.95360908]
[1755777229160,0.06,183.89,183.88,139.95360908]
[1755777229465,0.06,183.91,183.89,13.59559401]
[1755777229669,0.06,183.93,183.92,39.59559401]
[1755777229854,0.72,184.03,183.97,13.59559401]
[1755777230052,0.72,184.03,184.02,3.88801507]
[1755777230244,0.72,184.03,184.02,46.46801507]
[1755777230439,0.78,184.05,184.02,46.46801507]
[1755777230642,0.78,184.05,184.04,3.88801507]
[1755777230845,0.06,184.05,184.04,46.48801507]
[1755777232865,0.06,184.05,184.04,47.17801507]
[1755777233766,0.06,184.05,184.04,60.77360908]
[1755777236561,0.06,184.05,184.04,140.57360908]
[1755777239249,0.78,184.05,184.02,32.06601107]
[1755777239472,0.72,184.04,184.03,42.54]
[1755777240476,4.60801507,184.04,183.99,26.0]
[1755777240694,0.72,184.03,184.0,68.54]
[1755777241286,0.72,184.02,184.0,68.54]
[1755777241586,0.72,184.04,184.0,68.54]
[1755777241752,0.72,184.03,184.0,68.54]
[1755777241959,0.06,184.05,184.0,68.54]
[1755777241960,0.72,184.02,184.0,68.54]
[1755777242276,4.60801507,184.04,184.0,68.54]
[1755777242454,0.72,184.03,184.0,72.42801507]
[1755777242859,0.72,184.03,184.0,42.54]
[1755777243880,3.88801507,184.04,184.0,42.54]
[1755777244068,3.88801507,184.04,184.0,43.23]
[1755777244268,4.60801507,184.04,184.0,43.23]
[1755777244780,0.72,184.03,184.0,42.54]
[1755777245082,3.88801507,184.01,183.98,79.8]
[1755777245272,3.88801507,184.01,183.99,42.52]
[1755777245596,0.72,184.01,183.99,42.52]
[1755777245970,3.88801507,184.02,183.99,42.52]
[1755777246478,4.60801507,184.03,183.99,43.21]
[1755777246668,3.88801507,184.03,183.99,47.09801507]
[1755777246869,3.88801507,184.03,184.0,0.69]
[1755777247092,3.88801507,184.03,184.01,42.52]
[1755777247265,3.88801507,184.04,184.01,42.52]
[1755777247588,4.60801507,184.04,184.01,42.52]
[1755777247967,3.88801507,184.03,184.01,42.52]
[1755777248488,3.88801507,184.03,184.01,122.32]
[1755777248994,0.72,184.04,184.01,122.32]
[1755777249157,3.88801507,184.03,184.01,122.32]
[1755777250612,3.88801507,184.02,184.01,122.32]
[1755777250790,4.60801507,184.02,183.96,13.59559401]
[1755777250999,3.88801507,183.98,183.97,42.52]
[1755777251185,0.72,183.99,183.97,42.52]
[1755777251386,3.94801507,184.05,183.97,42.52]
[1755777251387,4.60801507,183.98,183.97,42.52]
[1755777251693,4.60801507,183.98,183.93,14.28559401]
[1755777251892,3.88801507,183.97,183.94,43.21]
[1755777252100,3.88801507,183.98,183.95,0.69]
[1755777252317,3.88801507,183.98,183.96,42.52]
[1755777253218,3.88801507,183.99,183.96,43.21]
[1755777253584,3.88801507,183.99,183.96,42.52]
[1755777253585,3.88801507,183.98,183.96,42.52]
[1755777254480,4.60801507,183.97,183.92,0.69]
[1755777254702,3.88801507,183.95,183.93,42.52]
[1755777254902,4.60801507,183.96,183.93,42.52]
[1755777255206,0.72,183.98,183.93,43.21]
[1755777255408,3.88801507,183.96,183.93,43.21]
[1755777256321,3.88801507,183.96,183.95,26.0]
[1755777256613,3.88801507,183.97,183.95,68.52]
[1755777257318,3.88801507,183.96,183.95,148.32]
[1755777260123,3.88801507,183.96,183.95,122.32]
[1755777260415,4.55801507,183.96,183.95,122.32]
[1755777260589,4.55801507,183.96,183.95,42.52]
[1755777260784,8.44603014,183.96,183.93,0.03]
[1755777261017,3.88801507,183.94,183.93,0.03]
[1755777261391,4.55801507,183.94,183.93,0.03]
[1755777267526,0.67,183.94,183.93,0.03]
[1755777267724,4.55801507,183.94,183.93,0.03]
[1755777268324,3.88801507,183.95,183.93,0.03]
[1755777268533,3.88801507,183.95,183.93,0.69]
[1755777269036,0.73,184.01,183.94,0.66]
[1755777269202,3.88801507,183.98,183.94,43.2]
[1755777269510,3.88801507,183.98,183.95,0.66]
[1755777269712,0.73,184.01,183.96,0.66]
[1755777269918,3.88801507,183.99,183.96,0.66]
[1755777270796,0.06,184.01,183.97,43.2]
[1755777271025,3.94801507,184.01,183.97,43.2]
[1755777271234,3.88801507,184.0,183.97,43.2]
[1755777271538,0.73,184.01,183.98,0.66]
[1755777271539,0.06,184.01,183.98,0.66]
[1755777271830,0.06,184.01,183.99,0.66]
[1755777272720,0.06,184.01,183.97,43.2]
[1755777272908,0.06,184.01,183.98,0.66]
[1755777273107,0.06,184.01,183.99,0.66]
[1755777273314,4.55801507,184.0,183.97,42.54]
[1755777273616,3.88801507,183.98,183.97,42.54]
[1755777274024,3.88801507,183.99,183.97,42.54]
[1755777274215,3.88801507,184.0,183.97,43.2]
[1755777274422,0.06,184.01,183.98,0.66]
[1755777274711,0.06,184.01,183.97,46.42801507]
[1755777274712,0.06,184.01,183.99,0.66]
[1755777274920,4.61801507,184.01,183.97,43.2]
[1755777275832,3.88801507,184.0,183.97,43.2]
[1755777276915,3.88801507,184.0,183.98,0.66]
[1755777277313,3.94801507,184.01,183.99,0.66]
[1755777277537,0.06,184.01,183.99,0.66]
[1755777277915,3.94801507,184.01,183.99,0.66]
[1755777278619,0.06,184.01,183.99,0.66]
[1755777278829,3.94801507,184.01,183.99,0.66]
[1755777279352,0.06,184.01,184.0,0.66]
[1755777279532,0.06,184.01,184.0,4.54801507]
[1755777280036,0.06,184.01,184.0,0.66]
[1755777280237,0.06,184.01,184.0,4.54801507]
[1755777280730,0.06,184.01,184.0,0.66]
[1755777280927,0.06,184.01,184.0,4.54801507]
[1755777281842,0.06,184.01,184.0,0.66]
[1755777282036,0.06,184.01,184.0,4.54801507]
[1755777282416,0.06,184.01,184.0,47.06801507]
[1755777282618,0.06,184.01,184.0,43.18]
[1755777283154,0.06,184.01,184.0,47.06801507]
[1755777283465,3.94801507,184.01,183.99,79.8]
[1755777283736,3.94801507,184.01,184.0,42.52]
[1755777283948,4.61801507,184.01,184.0,42.52]
[1755777284127,3.94801507,184.01,184.0,42.52]
[1755777284651,0.06,184.01,184.0,42.52]
[1755777286626,0.06,184.01,184.0,43.24]
[1755777287037,0.06,184.01,184.0,42.52]
[1755777287366,0.72,184.01,184.0,42.52]
[1755777287532,4.60801507,184.01,184.0,42.52]
[1755777287731,3.94801507,184.01,184.0,42.52]
[1755777288465,3.94801507,184.01,183.99,79.8]
[1755777288466,4.60801507,184.01,183.99,79.8]
[1755777288632,4.54801507,184.0,183.98,42.52]
[1755777288825,4.54801507,183.99,183.98,42.52]
[1755777289354,4.54801507,183.99,183.94,0.72]
[1755777289562,3.88801507,183.97,183.96,42.52]
[1755777290561,4.54801507,183.97,183.96,42.52]
[1755777290769,4.54801507,183.97,183.93,0.03]
[1755777290966,0.66,183.96,183.95,42.5]
[1755777292029,4.54801507,183.96,183.95,42.5]
[1755777293259,4.54801507,183.96,183.93,42.55]
[1755777293458,0.66,183.95,183.93,42.55]
[1755777293838,3.88801507,183.94,183.93,42.55]
[1755777294246,4.54801507,183.94,183.93,0.03]
[1755777295255,3.88801507,183.94,183.93,0.03]
[1755777295443,3.88801507,183.94,183.92,42.0809]
[1755777297657,3.88801507,183.93,183.92,42.0809]
[1755777298459,3.88801507,183.94,183.92,42.0809]
[1755777299159,3.88801507,183.93,183.92,42.0809]
[1755777299666,4.54801507,183.93,183.91,0.03]
[1755777299864,3.88801507,183.96,183.92,0.72]
[1755777300179,26.0,184.0,183.93,43.24]
[1755777300180,0.66,183.98,183.93,43.24]
[1755777300334,3.94801507,184.01,183.96,3.88801507]
[1755777300532,3.94801507,184.01,183.97,43.24]
[1755777300751,3.88801507,183.98,183.97,42.52]
[1755777300956,4.54801507,183.98,183.96,42.52]
[1755777301161,3.88801507,183.97,183.96,42.52]
[1755777301359,8.43603014,183.97,183.91,0.03]
[1755777301665,26.66,183.99,183.91,0.75]
[1755777301870,0.72,184.01,183.93,3.88801507]
[1755777302035,0.66,184.0,183.94,43.24]
[1755777302447,3.88801507,183.99,183.94,43.24]
[1755777302667,0.06,184.01,183.94,42.52]
[1755777302863,4.54801507,184.0,183.95,4.60801507]
[1755777303069,0.06,184.01,183.96,4.60801507]
[1755777303235,0.06,184.01,183.97,46.40801507]
[1755777303567,0.06,184.01,184.0,3.88801507]
[1755777303743,0.06,184.01,184.0,46.40801507]
[1755777304056,0.06,184.03,184.02,26.0]
[1755777304244,0.06,184.04,184.03,43.48360908]
[1755777304449,0.06,184.05,184.04,13.59559401]
[1755777304643,0.72,184.17,184.07,26.0]
[1755777304843,0.72,184.17,184.08,72.40801507]
[1755777304844,3.88801507,184.16,184.08,72.40801507]
[1755777305047,0.72,184.17,184.08,72.40801507]
[1755777305348,0.06,184.17,184.09,13.59559401]
[1755777305549,0.06,184.17,184.09,14.19559401]
[1755777305751,0.06,184.17,184.14,3.88801507]
[1755777305941,0.06,184.17,184.14,46.40801507]
[1755777306141,0.06,184.17,184.14,47.00801507]
[1755777306352,3.94801507,184.17,184.12,26.0]
[1755777306570,0.66,184.14,184.07,13.59559401]
[1755777306743,0.66,184.16,184.09,3.88801507]
[1755777306948,3.88801507,184.14,184.08,43.12]
[1755777307148,3.88801507,184.14,184.09,3.88801507]
[1755777307663,3.88801507,184.14,184.08,43.12]
[1755777307664,3.88801507,184.12,184.1,42.5]
[1755777307862,4.54801507,184.11,184.06,26.0]
[1755777308063,3.88801507,184.11,184.07,43.1]
[1755777308263,3.88801507,184.12,184.07,46.38801507]
[1755777308571,0.06,184.15,184.1,3.88801507]
[1755777308761,0.06,184.15,184.12,3.88801507]
[1755777309148,3.94801507,184.15,184.11,42.5]
[1755777309347,4.54801507,184.14,184.11,42.5]
[1755777309548,4.54801507,184.13,184.11,42.5]
[1755777309755,4.54801507,184.12,184.07,13.59559401]
[1755777309954,4.54801507,184.12,184.04,0.6]
[1755777309955,4.54801507,184.11,184.06,3.88801507]
[1755777310156,4.54801507,184.11,184.07,42.6]
[1755777310557,4.54801507,184.1,184.02,26.6]
[1755777310850,3.88801507,184.08,184.03,60.08360908]
[1755777311050,4.54801507,184.08,184.03,56.19559401]
[1755777311350,3.88801507,184.08,184.03,42.6]
[1755777311555,3.88801507,184.08,183.96,3.88801507]
[1755777311556,3.88801507,184.06,184.0,14.19559401]
[1755777311755,3.88801507,184.05,184.01,42.58]
[1755777312065,0.66,184.05,184.01,46.46801507]
[1755777312467,3.88801507,184.05,184.0,3.88801507]
[1755777312677,3.88801507,184.03,184.01,42.58]
[1755777312993,4.54801507,184.02,184.01,42.58]
[1755777313282,4.54801507,184.02,183.95,0.6]
[1755777313487,3.88801507,184.0,183.96,46.46801507]
[1755777313678,3.88801507,184.01,183.96,46.46801507]
[1755777313875,3.88801507,184.02,183.97,4.48801507]
[1755777314094,4.54801507,184.02,183.98,42.58]
[1755777314256,0.66,184.02,183.98,48.90792201]
[1755777314663,0.66,184.07,184.0,6.32792201]
[1755777314891,6.32792201,184.05,184.0,6.32792201]
[1755777315049,0.66,184.07,184.01,6.92792201]
[1755777315250,0.66,184.07,184.01,49.50792201]
[1755777315479,6.98792201,184.1,184.05,6.32792201]
[1755777315781,0.66,184.1,184.06,6.32792201]
[1755777316155,0.66,184.12,184.06,6.32792201]
[1755777316359,6.32792201,184.11,184.06,6.32792201]
[1755777316564,6.32792201,184.11,184.06,6.92792201]
[1755777316786,0.06,184.15,184.07,6.92792201]
[1755777317093,0.06,184.15,184.09,6.32792201]
[1755777317296,6.32792201,184.14,184.09,42.58]
[1755777317465,7.02792201,184.14,184.09,42.58]
[1755777317956,0.7,184.14,184.09,42.58]
[1755777318157,7.02792201,184.14,184.09,42.58]
[1755777318673,7.02792201,184.14,184.09,43.18]
[1755777319081,7.02792201,184.14,184.09,42.58]
[1755777319396,6.32792201,184.13,184.09,42.58]
[1755777319597,0.7,184.14,184.09,42.08]
[1755777319770,6.32792201,184.13,184.09,42.08]
[1755777321169,6.32792201,184.1,184.08,42.56]
[1755777321350,6.32792201,184.1,184.07,42.56]
[1755777321562,6.32792201,184.11,184.07,42.56]
[1755777321875,7.02792201,184.11,184.07,42.56]
[1755777322080,0.7,184.1,184.07,42.56]
[1755777322383,6.32792201,184.08,184.06,42.54]
[1755777322569,7.02792201,184.07,184.06,42.54]
[1755777323276,6.32792201,184.08,184.06,42.54]
[1755777323688,7.02792201,184.08,184.06,42.54]
[1755777324486,6.32792201,184.14,184.06,42.54]
[1755777324671,6.32792201,184.08,184.06,42.57]
[1755777325275,0.06,184.13,184.06,42.57]
[1755777325276,6.32792201,184.07,184.06,0.03]
[1755777325578,7.02792201,184.07,184.06,0.03]
[1755777326088,0.7,184.1,184.06,0.03]
[1755777326290,6.32792201,184.07,184.06,0.03]
[1755777326676,7.02792201,184.07,184.06,0.03]
[1755777329865,0.7,184.07,184.06,0.03]
[1755777330084,7.02792201,184.07,184.06,0.03]
[1755777331699,20.62351602,184.07,184.06,0.03]
[1755777334374,26.0,184.04,184.02,0.03]
[1755777334582,6.32792201,184.03,184.02,0.03]
[1755777334781,7.02792201,184.03,184.02,0.03]
[1755777334989,13.35584402,184.03,184.02,0.03]
[1755777336098,7.02792201,184.03,184.02,0.03]
[1755777336292,6.32792201,184.03,184.02,0.03]
[1755777338178,7.02792201,184.03,184.02,0.03]
[1755777339304,13.35584402,184.03,184.02,0.03]
[1755777339813,6.32792201,184.03,184.02,0.03]
[1755777340115,0.7,184.05,184.02,0.03]
[1755777340301,6.32792201,184.03,184.02,0.03]
[1755777340503,7.02792201,184.03,184.02,0.03]
[1755777342218,6.32792201,184.03,184.02,0.03]
[1755777342403,3.88415184,184.03,184.02,0.03]
[1755777344119,3.88415184,184.04,184.02,0.03]
[1755777344491,3.88415184,184.03,184.02,0.03]
[1755777344693,4.58415184,184.03,184.02,0.03]
[1755777344888,3.88415184,184.03,184.02,0.03]
[1755777346215,4.58415184,184.03,184.02,0.03]
[1755777346629,3.88415184,184.03,184.02,0.03]
[1755777347710,3.60458739,184.08,184.02,0.63]
[1755777347908,0.06,184.09,184.03,3.88415184]
[1755777348122,3.88415184,184.08,184.04,0.6]
[1755777348305,3.88415184,184.08,184.05,0.6]
[1755777348508,3.94415184,184.09,184.05,0.6]
[1755777349310,3.88415184,184.07,184.02,0.63]
[1755777349524,3.88415184,184.06,184.02,0.63]
[1755777350138,3.88415184,184.06,184.03,0.6]
[1755777350519,0.74,184.09,184.03,0.6]
[1755777350715,3.88415184,184.06,184.03,0.6]
[1755777350918,3.88415184,184.08,184.02,3.91415184]
[1755777351113,3.88415184,184.08,184.04,0.6]
[1755777352234,3.88415184,184.07,184.02,3.91415184]
[1755777352620,0.74,184.09,184.03,0.6]
[1755777352823,3.88415184,184.07,184.03,0.6]
[1755777353024,3.88415184,184.07,184.04,0.6]
[1755777353416,3.88415184,184.07,184.02,0.63]
[1755777353729,4.56415184,184.07,184.02,0.63]
[1755777354042,3.88415184,184.03,184.02,0.03]
[1755777354413,0.68,184.06,184.02,0.03]
[1755777354414,3.88415184,184.04,184.02,0.03]
[1755777354617,0.68,184.05,184.02,0.03]
[1755777354811,3.88415184,184.04,184.02,0.03]
[1755777355438,4.56415184,184.04,184.02,0.03]
[1755777355632,0.68,184.04,184.02,0.03]
[1755777355835,3.88415184,184.03,184.02,0.03]
[1755777356246,3.88415184,184.04,184.02,0.03]
[1755777356926,3.88415184,184.03,184.02,0.03]
[1755777357930,4.56415184,184.04,184.02,0.03]
[1755777358123,3.88415184,184.05,184.02,0.03]
[1755777358624,0.68,184.04,184.02,0.03]
[1755777358826,4.56415184,184.04,184.02,0.03]
[1755777359129,0.68,184.04,184.02,0.03]
[1755777359436,3.88415184,184.05,184.02,0.03]
[1755777359626,4.56415184,184.05,184.02,0.03]
[1755777359939,0.68,184.04,184.02,0.03]
[1755777360337,4.56415184,184.04,184.02,0.03]
[1755777360914,0.68,184.04,184.02,0.03]
[1755777361118,0.68,184.03,184.02,0.03]
[1755777361334,4.56415184,184.03,184.02,0.03]
[1755777361947,3.88415184,184.03,184.02,0.03]
[1755777362146,4.56415184,184.03,184.02,0.03]
[1755777362522,3.88415184,184.04,184.02,0.03]
[1755777362732,3.88415184,184.05,184.02,0.03]
[1755777363136,4.56415184,184.05,184.02,0.03]
[1755777364139,0.68,184.05,184.02,0.03]
[1755777364339,7.55390558,184.08,184.03,4.48415184]
[1755777364540,4.62415184,184.08,184.03,4.48415184]
[1755777364755,0.06,184.08,184.02,0.03]
[1755777364935,4.62415184,184.08,184.02,3.91415184]
[1755777365267,3.88415184,184.07,184.02,0.03]
[1755777365471,3.88415184,184.05,184.02,0.03]
[1755777365958,4.56415184,184.05,184.02,0.03]
[1755777366453,0.68,184.05,184.02,0.03]
[1755777366831,3.94415184,184.08,184.03,4.48415184]
[1755777367034,0.06,184.08,184.05,3.88415184]
[1755777367229,0.06,184.08,184.07,29.88415184]
[1755777367559,0.06,184.08,184.07,30.48415184]
[1755777367856,0.06,184.08,184.07,26.6]
[1755777368152,0.06,184.08,184.07,30.48415184]
[1755777368856,0.06,184.08,184.07,72.98415184]
[1755777371063,0.06,184.08,184.07,30.48415184]
[1755777371244,0.06,184.08,184.07,72.96415184]
[1755777372643,0.06,184.08,184.07,72.36415184]
[1755777373239,0.06,184.08,184.07,72.96415184]
[1755777373438,0.06,184.08,184.07,152.76415184]
[1755777375164,0.06,184.08,184.07,72.96415184]
[1755777377558,0.06,184.08,184.07,87.10301743]
[1755777377738,0.06,184.08,184.07,89.28042143]
[1755777379062,0.06,184.08,184.07,93.57162249]
[1755777379454,0.06,184.08,184.07,99.0043383]
[1755777379655,0.06,184.09,184.08,13.59559401]
[1755777379847,0.06,184.12,184.11,39.59559401]
[1755777380051,0.06,184.12,184.11,166.30289939]
[1755777380255,0.06,184.12,184.11,166.35974585]
[1755777380569,0.06,184.12,184.11,168.53643885]
[1755777384080,0.06,184.12,184.11,167.91643885]
[1755777384243,0.06,184.12,184.11,122.26]
[1755777384244,0.73,184.12,184.11,122.26]
[1755777384445,0.73,184.12,184.11,126.14415184]
[1755777384741,0.06,184.12,184.11,46.34415184]
[1755777385089,0.06,184.12,184.11,140.88289939]
[1755777385378,0.06,184.12,184.11,140.33974585]
[1755777386342,0.06,184.12,184.11,139.73974585]
[1755777387170,0.73,184.12,184.11,152.14415184]
[1755777387376,0.73,184.12,184.11,148.26]
[1755777387743,0.73,184.12,184.11,152.14415184]
[1755777388760,0.73,184.12,184.11,148.26]
[1755777388959,0.73,184.12,184.11,152.14415184]
[1755777389377,0.06,184.12,184.11,152.14415184]
[1755777389668,0.06,184.12,184.11,166.33974585]
[1755777390045,0.06,184.12,184.11,140.33974585]
[1755777390278,0.06,184.13,184.12,119.33559401]
[1755777390453,0.06,184.13,184.12,123.21974585]
[1755777390774,0.06,184.13,184.12,129.25098634]
[1755777391075,0.06,184.13,184.12,123.81974585]
[1755777391275,0.06,184.13,184.12,123.21974585]
[1755777391869,0.06,184.13,184.12,165.67974585]
[1755777392181,0.73,184.13,184.12,105.74]
[1755777392358,0.73,184.13,184.12,83.62415184]
[1755777392689,0.73,184.13,184.12,122.2]
[1755777393970,0.73,184.13,184.12,42.46]
[1755777396964,0.73,184.13,184.12,42.46]
[1755777398667,0.06,184.13,184.12,46.34415184]
[1755777398990,0.06,184.13,184.12,60.53974585]
[1755777399476,0.06,184.13,184.12,140.27974585]
[1755777399717,0.06,184.13,184.12,135.79559401]
[1755777399889,0.06,184.13,184.12,139.67974585]
[1755777403387,0.06,184.13,184.12,140.27974585]
[1755777403811,0.06,184.13,184.12,142.45643885]
[1755777403992,0.06,184.13,184.12,99.99643885]
[1755777404308,0.06,184.13,184.12,142.97956289]
[1755777404609,0.06,184.13,184.12,139.65974585]
[1755777405200,0.73,184.15,184.13,105.68]
[1755777405409,0.73,184.15,184.14,42.44]
[1755777405715,0.73,184.15,184.14,46.32415184]
[1755777406812,0.73,184.15,184.14,42.44]
[1755777406990,0.73,184.15,184.14,46.32415184]
[1755777407190,0.73,184.15,184.14,42.44]
[1755777407391,0.73,184.15,184.14,46.32415184]
[1755777408417,0.06,184.15,184.14,46.32415184]
[1755777409413,0.06,184.15,184.14,139.59974585]
[1755777410201,0.06,184.15,184.14,135.71559401]
[1755777410403,0.06,184.15,184.14,126.00415184]
[1755777410800,0.06,184.15,184.14,142.35415184]
[1755777411000,0.06,184.15,184.14,126.00415184]
[1755777415225,0.06,184.15,184.14,165.86454828]
[1755777415803,0.06,184.15,184.14,168.04064928]
[1755777416830,0.06,184.15,184.14,173.39461896]
[1755777420513,0.06,184.15,184.14,193.96396837]
[1755777420898,0.06,184.15,184.14,173.39461896]
[1755777421098,0.06,184.17,184.14,173.39461896]
[1755777421099,0.06,184.17,184.16,13.59559401]
[1755777421301,0.06,184.19,184.18,97.09974585]
[1755777421521,0.06,184.19,184.18,140.08269296]
[1755777421827,0.06,184.2,184.18,145.56921701]
[1755777422040,0.06,184.2,184.19,3.88415184]
[1755777423434,0.06,184.2,184.19,32.05989784]
[1755777423607,0.06,184.2,184.19,32.60281547]
[1755777423803,0.06,184.2,184.19,33.20281547]
[1755777424025,0.06,184.2,184.19,105.84758587]
[1755777424215,0.06,184.2,184.19,254.49758587]
[1755777424418,0.2,184.23,184.22,26.0]
[1755777424630,0.2,184.23,184.22,156.3711329]
[1755777424839,0.2,184.23,184.22,156.42830368]
[1755777425334,0.2,184.23,184.22,158.60369468]
[1755777425716,0.2,184.23,184.22,158.00369468]
[1755777425937,0.2,184.23,184.22,154.11954284]
[1755777429444,0.87,184.23,184.22,154.11954284]
[1755777430119,0.87,184.23,184.22,125.27513685]
[1755777430357,0.87,184.23,184.22,167.69513685]
[1755777432253,0.2,184.23,184.22,167.69513685]
[1755777432834,0.67,184.26,184.25,79.16]
[1755777433040,0.67,184.28,184.25,125.46415184]
[1755777433367,0.67,184.28,184.27,3.88415184]
[1755777433524,0.67,184.28,184.27,46.30415184]
[1755777433845,0.67,184.28,184.27,42.42]
[1755777435527,0.67,184.28,184.26,3.88415184]
[1755777435750,0.67,184.28,184.27,42.42]
[1755777437758,0.67,184.28,184.27,121.58]
[1755777441441,0.73,184.28,184.27,121.58]
[1755777441847,0.73,184.28,184.27,79.16]
[1755777442043,0.73,184.28,184.27,121.58]
[1755777444744,0.73,184.28,184.27,121.56]
[1755777448659,0.73,184.28,184.27,79.16]
[1755777448973,4.61415184,184.28,184.27,121.56]
[1755777449575,4.61415184,184.28,184.27,42.4]
[1755777449776,0.73,184.28,184.27,42.4]
[1755777449976,0.06,184.28,184.27,42.4]
[1755777450850,0.06,184.28,184.27,125.44415184]
[1755777452277,0.74,184.28,184.27,121.56]
[1755777452674,0.06,184.28,184.27,121.56]
[1755777452978,0.06,184.28,184.27,125.44415184]
[1755777453562,0.74,184.28,184.27,79.16]
[1755777453785,0.74,184.28,184.27,121.56]
[1755777454373,0.74,184.28,184.27,79.16]
[1755777454582,0.74,184.28,184.27,121.56]
[1755777455886,0.06,184.28,184.27,121.56]
[1755777456169,0.06,184.28,184.27,125.44415184]
[1755777456867,0.06,184.28,184.27,121.56]
[1755777457183,0.06,184.28,184.27,125.44415184]
[1755777457681,0.06,184.28,184.27,121.56]
[1755777458372,0.74,184.28,184.27,121.56]
[1755777458770,0.06,184.28,184.27,121.56]
[1755777459584,0.06,184.28,184.27,125.44415184]
[1755777460072,0.06,184.28,184.27,121.56]
[1755777460379,0.74,184.28,184.27,121.56]
[1755777461177,4.62415184,184.28,184.25,79.16]
[1755777461361,3.88415184,184.26,184.24,0.03]
[1755777461561,3.88415184,184.25,184.22,0.03]
[1755777461777,3.88415184,184.23,184.22,0.03]
[1755777462290,4.56415184,184.23,184.22,0.03]
[1755777462784,0.68,184.23,184.22,0.03]
[1755777462970,4.56415184,184.23,184.22,0.03]
[1755777464992,0.68,184.23,184.22,0.03]
[1755777465186,4.36874094,184.28,184.22,4.54415184]
[1755777465396,0.74,184.28,184.24,3.88415184]
[1755777465590,0.74,184.28,184.25,42.4]
[1755777465887,0.06,184.28,184.26,3.88415184]
[1755777466087,0.06,184.28,184.27,42.4]
[1755777466587,0.06,184.28,184.27,46.28415184]
[1755777470795,0.75,184.28,184.27,42.4]
[1755777472791,0.06,184.28,184.27,42.4]
[1755777473377,0.06,184.28,184.27,46.28415184]
[1755777474066,0.06,184.28,184.27,46.91415184]
[1755777474698,0.06,184.28,184.27,46.28415184]
[1755777474903,0.06,184.28,184.27,42.4]
[1755777475215,0.06,184.28,184.27,46.28415184]
[1755777475591,0.06,184.28,184.27,125.44415184]
[1755777478196,0.06,184.28,184.27,121.56]
[1755777478514,0.06,184.28,184.27,125.44415184]
[1755777479498,0.06,184.28,184.27,121.56]
[1755777480111,0.75,184.28,184.27,121.56]
[1755777480494,4.63415184,184.28,184.25,79.16]
[1755777480815,0.75,184.28,184.24,0.03]